[Event "Titled Tuesday Blitz May 2 Early 2023"]
[White "Mihajlov, Sebastian"]
[Black "Marcziter, Dmitrii"]
[WhiteFideId "1512110"]
[BlackFideId "13900765"]
[WhiteElo "2478"]
[BlackElo "2162"]
[Result "0-1"]
[Round "01"]
[TimeControl "180+2"]
[Date "2023.05.02"]
[WhiteClock "0:00:01"]
[BlackClock "0:00:00"]

1. d4 {[%clk 0:00:01]}  d5 {[%clk 0:00:01]} 2. Nf3 {[%clk 0:00:01]}  c5 {[%clk 0:00:01]} 3. e3 {[%clk 0:00:01]}  Nc6 {[%clk 0:00:01]} 4. Bd3 {[%clk 0:00:01]}  Nf6 {[%clk 0:00:01]} 5. O-O {[%clk 0:00:01]}  Bg4 {[%clk 0:00:01]} 6. c3 {[%clk 0:00:01]}  e6 {[%clk 0:00:01]} 7. Nbd2 {[%clk 0:00:01]}  Bd6 {[%clk 0:00:01]} 8. h3 {[%clk 0:00:01]}  Bh5 {[%clk 0:00:01]} 9. dxc5 {[%clk 0:00:01]}  Bxc5 {[%clk 0:00:01]} 10. b4 {[%clk 0:00:01]}  Bd6 {[%clk 0:00:01]} 11. Bb2 {[%clk 0:00:01]}  O-O {[%clk 0:00:01]} 12. a3 {[%clk 0:00:01]}  e5 {[%clk 0:00:01]} 13. e4 {[%clk 0:00:01]}  dxe4 {[%clk 0:00:01]} 14. Nxe4 {[%clk 0:00:01]}  Nxe4 {[%clk 0:00:01]} 15. Bxe4 {[%clk 0:00:01]}  f5 {[%clk 0:00:01]} 16. Qb3+ {[%clk 0:00:01]}  Kh8 {[%clk 0:00:01]} 17. Bd5 {[%clk 0:00:01]}  e4 {[%clk 0:00:01]} 18. Nd2 {[%clk 0:00:01]}  Qg5 {[%clk 0:00:01]} 19. Nc4 {[%clk 0:00:01]}  Bc7 {[%clk 0:00:01]} 20. Bc1 {[%clk 0:00:01]}  Qg6 {[%clk 0:00:01]} 21. Kh1 {[%clk 0:00:01]}  Rad8 {[%clk 0:00:01]} 22. Nb2 {[%clk 0:00:01]}  Qd6 {[%clk 0:00:00]} 0-1


[Site "https://www.chess.com"]

[Event "Titled Tuesday Blitz May 2 Early 2023"]
[White "Vedder, Richard"]
[Black "Schmakel, Sam"]
[WhiteFideId "1004166"]
[BlackFideId "2039311"]
[WhiteElo "2168"]
[BlackElo "2356"]
[Result "0-1"]
[Round "01"]
[TimeControl "180+2"]
[Date "2023.05.02"]
[WhiteClock "0:00:01"]
[BlackClock "0:00:01"]

1. d4 {[%clk 0:00:01]}  d5 {[%clk 0:00:01]} 2. c4 {[%clk 0:00:01]}  e6 {[%clk 0:00:01]} 3. Nc3 {[%clk 0:00:01]}  Nf6 {[%clk 0:00:01]} 4. Bg5 {[%clk 0:00:01]}  dxc4 {[%clk 0:00:01]} 5. e4 {[%clk 0:00:01]}  Bb4 {[%clk 0:00:01]} 6. Bxc4 {[%clk 0:00:01]}  c5 {[%clk 0:00:01]} 7. Nf3 {[%clk 0:00:01]}  cxd4 {[%clk 0:00:01]} 8. Nxd4 {[%clk 0:00:01]}  Bxc3+ {[%clk 0:00:01]} 9. bxc3 {[%clk 0:00:01]}  Qa5 {[%clk 0:00:01]} 10. Bb5+ {[%clk 0:00:01]}  Nbd7 {[%clk 0:00:01]} 11. Bxf6 {[%clk 0:00:01]}  Qxc3+ {[%clk 0:00:01]} 12. Ke2 {[%clk 0:00:01]}  gxf6 {[%clk 0:00:01]} 13. Rc1 {[%clk 0:00:01]}  Qb4 {[%clk 0:00:01]} 14. Rxc8+ {[%clk 0:00:01]}  Rxc8 {[%clk 0:00:01]} 15. Bxd7+ {[%clk 0:00:01]}  Kxd7 {[%clk 0:00:01]} 16. Nb5+ {[%clk 0:00:01]}  Ke7 {[%clk 0:00:01]} 17. a4 {[%clk 0:00:01]}  Rhd8 {[%clk 0:00:01]} 0-1


[Site "https://www.chess.com"]

[Event "Titled Tuesday Blitz May 2 Early 2023"]
[White "Averjanov, Alexey"]
[Black "Vaglio Munoz, Jaime"]
[WhiteFideId "14109867"]
[BlackFideId "6500145"]
[WhiteElo "2399"]
[BlackElo "2199"]
[Result "1-0"]
[Round "01"]
[TimeControl "180+2"]
[Date "2023.05.02"]
[WhiteClock "0:00:00"]
[BlackClock "0:00:00"]

1. d4 {[%clk 0:00:01]}  c6 {[%clk 0:00:00]} 2. c4 {[%clk 0:00:01]}  b5 {[%clk 0:00:00]} 3. cxb5 {[%clk 0:00:01]}  cxb5 {[%clk 0:00:00]} 4. e4 {[%clk 0:00:01]}  Bb7 {[%clk 0:00:00]} 5. Bd3 {[%clk 0:00:01]}  Nf6 {[%clk 0:00:00]} 6. Qe2 {[%clk 0:00:01]}  Nc6 {[%clk 0:00:00]} 7. Nf3 {[%clk 0:00:01]}  Nb4 {[%clk 0:00:00]} 8. Nbd2 {[%clk 0:00:01]}  Nxd3+ {[%clk 0:00:00]} 9. Qxd3 {[%clk 0:00:01]}  a6 {[%clk 0:00:00]} 10. O-O {[%clk 0:00:01]}  e6 {[%clk 0:00:00]} 11. b3 {[%clk 0:00:01]}  Rc8 {[%clk 0:00:00]} 12. Bb2 {[%clk 0:00:01]}  Qa5 {[%clk 0:00:00]} 13. a4 {[%clk 0:00:01]}  Bb4 {[%clk 0:00:00]} 14. e5 {[%clk 0:00:01]}  Nd5 {[%clk 0:00:00]} 15. axb5 {[%clk 0:00:01]}  Qxb5 {[%clk 0:00:00]} 16. Nc4 {[%clk 0:00:01]}  Nf4 {[%clk 0:00:00]} 17. Qe3 {[%clk 0:00:01]}  Ng6 {[%clk 0:00:00]} 18. Ng5 {[%clk 0:00:01]}  O-O {[%clk 0:00:00]} 19. Ne4 {[%clk 0:00:01]}  Qd5 {[%clk 0:00:00]} 20. f3 {[%clk 0:00:01]}  Qc6 {[%clk 0:00:00]} 21. Rfc1 {[%clk 0:00:01]}  Qc7 {[%clk 0:00:00]} 22. Ncd6 {[%clk 0:00:01]}  Qb8 {[%clk 0:00:00]} 23. Nxc8 {[%clk 0:00:01]}  Bxc8 {[%clk 0:00:00]} 24. Ba3 {[%clk 0:00:01]}  a5 {[%clk 0:00:00]} 25. Bxb4 {[%clk 0:00:01]}  axb4 {[%clk 0:00:00]} 26. Nd6 {[%clk 0:00:01]}  Ne7 {[%clk 0:00:00]} 27. Qd3 {[%clk 0:00:01]}  Nd5 {[%clk 0:00:00]} 28. Rc5 {[%clk 0:00:01]}  Bb7 {[%clk 0:00:00]} 29. Rb5 {[%clk 0:00:01]}  Qc7 {[%clk 0:00:00]} 30. Rxb7 {[%clk 0:00:01]}  Qc6 {[%clk 0:00:00]} 31. Qc4 {[%clk 0:00:01]}  Qxc4 {[%clk 0:00:00]} 32. bxc4 {[%clk 0:00:01]}  Ne3 {[%clk 0:00:00]} 33. Rxd7 {[%clk 0:00:01]}  h5 {[%clk 0:00:00]} 34. Rda7 {[%clk 0:00:01]}  Rb8 {[%clk 0:00:00]} 35. Ra8 {[%clk 0:00:01]}  Rxa8 {[%clk 0:00:00]} 36. Rxa8+ {[%clk 0:00:01]}  Kh7 {[%clk 0:00:00]} 37. Rb8 {[%clk 0:00:01]}  g5 {[%clk 0:00:00]} 38. Rxb4 {[%clk 0:00:01]}  g4 {[%clk 0:00:00]} 39. fxg4 {[%clk 0:00:01]}  hxg4 {[%clk 0:00:00]} 40. Nxf7 {[%clk 0:00:01]}  Kg6 {[%clk 0:00:00]} 41. Nd8 {[%clk 0:00:01]}  Kf5 {[%clk 0:00:00]} 42. c5 {[%clk 0:00:01]}  Nd5 {[%clk 0:00:00]} 43. Rb3 {[%clk 0:00:01]}  Kf4 {[%clk 0:00:00]} 44. c6 {[%clk 0:00:01]}  Ke4 {[%clk 0:00:00]} 45. Nxe6 {[%clk 0:00:00]}  g3 {[%clk 0:00:00]} 46. Rxg3 {[%clk 0:00:00]}  Nc7 {[%clk 0:00:00]} 47. Nxc7 {[%clk 0:00:00]}  Kxd4 {[%clk 0:00:00]} 48. e6 {[%clk 0:00:00]}  Ke5 {[%clk 0:00:00]} 49. e7 {[%clk 0:00:00]}  Kd6 {[%clk 0:00:00]} 50. e8=Q {[%clk 0:00:00]}  Kxc7 {[%clk 0:00:00]} 51. Qd7+ {[%clk 0:00:00]}  Kb6 {[%clk 0:00:00]} 52. c7 {[%clk 0:00:00]}  Kc5 {[%clk 0:00:00]} 53. c8=Q+ {[%clk 0:00:00]}  Kb4 {[%clk 0:00:00]} 54. Qdb7+ {[%clk 0:00:00]} 1-0


[Site "https://www.chess.com"]

[Event "Titled Tuesday Blitz May 2 Early 2023"]
[White "Topalov, Aleksandar"]
[Black "Hua, Lefong"]
[WhiteFideId "925659"]
[BlackFideId "2602253"]
[WhiteElo "2151"]
[BlackElo "2305"]
[Result "1/2-1/2"]
[Round "01"]
[TimeControl "180+2"]
[Date "2023.05.02"]
[WhiteClock "0:00:00"]
[BlackClock "0:00:00"]

1. b3 {[%clk 0:00:01]}  Nf6 {[%clk 0:00:01]} 2. Bb2 {[%clk 0:00:01]}  g6 {[%clk 0:00:01]} 3. Bxf6 {[%clk 0:00:01]}  exf6 {[%clk 0:00:01]} 4. c4 {[%clk 0:00:01]}  b6 {[%clk 0:00:01]} 5. Nc3 {[%clk 0:00:01]}  Bb7 {[%clk 0:00:01]} 6. e3 {[%clk 0:00:01]}  Bg7 {[%clk 0:00:01]} 7. Nge2 {[%clk 0:00:01]}  O-O {[%clk 0:00:01]} 8. Nf4 {[%clk 0:00:01]}  f5 {[%clk 0:00:01]} 9. Be2 {[%clk 0:00:01]}  d6 {[%clk 0:00:01]} 10. O-O {[%clk 0:00:01]}  Nd7 {[%clk 0:00:01]} 11. Rc1 {[%clk 0:00:01]}  Nf6 {[%clk 0:00:01]} 12. Bf3 {[%clk 0:00:01]}  Ne4 {[%clk 0:00:01]} 13. Nfd5 {[%clk 0:00:01]}  Re8 {[%clk 0:00:01]} 14. d3 {[%clk 0:00:01]}  Nxc3 {[%clk 0:00:01]} 15. Nxc3 {[%clk 0:00:01]}  Bxf3 {[%clk 0:00:01]} 16. Qxf3 {[%clk 0:00:01]}  Qd7 {[%clk 0:00:01]} 17. Nd5 {[%clk 0:00:01]}  c6 {[%clk 0:00:01]} 18. Nf4 {[%clk 0:00:01]}  a5 {[%clk 0:00:01]} 19. Rb1 {[%clk 0:00:01]}  h5 {[%clk 0:00:01]} 20. g3 {[%clk 0:00:01]}  Be5 {[%clk 0:00:01]} 21. Ne2 {[%clk 0:00:01]}  Kg7 {[%clk 0:00:01]} 22. a3 {[%clk 0:00:01]}  h4 {[%clk 0:00:01]} 23. d4 {[%clk 0:00:01]}  Bf6 {[%clk 0:00:01]} 24. b4 {[%clk 0:00:01]}  axb4 {[%clk 0:00:01]} 25. axb4 {[%clk 0:00:01]}  hxg3 {[%clk 0:00:00]} 26. hxg3 {[%clk 0:00:01]}  Ra4 {[%clk 0:00:00]} 27. b5 {[%clk 0:00:01]}  Rxc4 {[%clk 0:00:00]} 28. bxc6 {[%clk 0:00:01]}  Qxc6 {[%clk 0:00:00]} 29. Qxc6 {[%clk 0:00:01]}  Rxc6 {[%clk 0:00:00]} 30. Nf4 {[%clk 0:00:01]}  Rb8 {[%clk 0:00:00]} 31. Rb5 {[%clk 0:00:00]}  Bd8 {[%clk 0:00:00]} 32. Nd5 {[%clk 0:00:00]}  Kf8 {[%clk 0:00:00]} 33. Ra1 {[%clk 0:00:00]}  Rcc8 {[%clk 0:00:00]} 34. Ra7 {[%clk 0:00:00]}  Rc6 {[%clk 0:00:00]} 35. Kg2 {[%clk 0:00:00]}  Ke8 {[%clk 0:00:00]} 36. Kf3 {[%clk 0:00:00]}  Rcc8 {[%clk 0:00:00]} 37. Ke2 {[%clk 0:00:00]}  Rc2+ {[%clk 0:00:00]} 38. Kf3 {[%clk 0:00:00]}  Rcc8 {[%clk 0:00:00]} 39. Ke2 {[%clk 0:00:00]}  Rc2+ {[%clk 0:00:00]} 40. Kf3 {[%clk 0:00:00]}  Rc6 {[%clk 0:00:00]} 41. Ke2 {[%clk 0:00:00]}  Rbc8 {[%clk 0:00:00]} 42. Kf3 {[%clk 0:00:00]}  Rc2 {[%clk 0:00:00]} 43. Rb3 {[%clk 0:00:00]}  Rd2 {[%clk 0:00:00]} 44. Rc3 {[%clk 0:00:00]}  Rxc3 {[%clk 0:00:00]} 45. Nxc3 {[%clk 0:00:00]}  Rb2 {[%clk 0:00:00]} 46. Ra8 {[%clk 0:00:00]}  Kd7 {[%clk 0:00:00]} 47. Ra7+ {[%clk 0:00:00]}  Ke8 {[%clk 0:00:00]} 48. Ra8 {[%clk 0:00:00]}  b5 {[%clk 0:00:00]} 49. Rb8 {[%clk 0:00:00]}  b4 {[%clk 0:00:00]} 50. Nd5 {[%clk 0:00:00]}  b3 {[%clk 0:00:00]} 51. Nc7+ {[%clk 0:00:00]}  Kd7 {[%clk 0:00:00]} 52. Nd5 {[%clk 0:00:00]}  Rb1 {[%clk 0:00:00]} 53. Rb7+ {[%clk 0:00:00]}  Kc6 {[%clk 0:00:00]} 54. Rb8 {[%clk 0:00:00]}  Kxd5 {[%clk 0:00:00]} 55. Rxd8 {[%clk 0:00:00]}  b2 {[%clk 0:00:00]} 56. Rb8 {[%clk 0:00:00]}  g5 {[%clk 0:00:00]} 57. Kg2 {[%clk 0:00:00]}  g4 {[%clk 0:00:00]} 58. Rb7 {[%clk 0:00:00]}  Ke4 {[%clk 0:00:00]} 59. Rb3 {[%clk 0:00:00]}  f6 {[%clk 0:00:00]} 60. Rb4 {[%clk 0:00:00]}  Kd3 {[%clk 0:00:00]} 61. Rb5 {[%clk 0:00:00]}  Kc4 {[%clk 0:00:00]} 62. Rb8 {[%clk 0:00:00]}  Kd3 {[%clk 0:00:00]} 63. Rb7 {[%clk 0:00:00]}  Kc3 {[%clk 0:00:00]} 64. Rc7+ {[%clk 0:00:00]}  Kd2 {[%clk 0:00:00]} 65. Rb7 {[%clk 0:00:00]}  Ke1 {[%clk 0:00:00]} 66. Rb6 {[%clk 0:00:00]}  Rd1 {[%clk 0:00:00]} 67. Rxb2 {[%clk 0:00:00]}  Rd2 {[%clk 0:00:00]} 68. Rxd2 {[%clk 0:00:00]}  Kxd2 {[%clk 0:00:00]} 69. Kf1 {[%clk 0:00:00]}  Kd1 {[%clk 0:00:00]} 70. Kg1 {[%clk 0:00:00]}  Ke1 {[%clk 0:00:00]} 71. Kg2 {[%clk 0:00:00]}  Ke2 {[%clk 0:00:00]} 72. Kg1 {[%clk 0:00:00]}  Kd2 {[%clk 0:00:00]} 73. Kf1 {[%clk 0:00:00]}  Kd1 {[%clk 0:00:00]} 74. Kg1 {[%clk 0:00:00]}  Ke1 {[%clk 0:00:00]} 75. Kg2 {[%clk 0:00:00]}  Ke2 {[%clk 0:00:00]} 76. Kg1 {[%clk 0:00:00]}  Kf3 {[%clk 0:00:00]} 77. Kf1 {[%clk 0:00:00]}  d5 {[%clk 0:00:00]} 78. Ke1 {[%clk 0:00:00]}  Kg2 {[%clk 0:00:00]} 79. Ke2 {[%clk 0:00:00]}  Kg1 {[%clk 0:00:00]} 80. Ke1 {[%clk 0:00:00]}  Kg2 {[%clk 0:00:00]} 81. Ke2 {[%clk 0:00:00]}  Kg1 {[%clk 0:00:00]} 82. Ke1 {[%clk 0:00:00]}  Kg2 {[%clk 0:00:00]} 1/2-1/2


[Site "https://www.chess.com"]

[Event "Titled Tuesday Blitz May 2 Early 2023"]
[White "Karthik Rajaa"]
[Black "Gracia Alvarez, Gerardo Antonio"]
[WhiteFideId "25035215"]
[BlackFideId "5109124"]
[WhiteElo "2215"]
[BlackElo "2160"]
[Result "1-0"]
[Round "01"]
[TimeControl "180+2"]
[Date "2023.05.02"]
[WhiteClock "0:00:00"]
[BlackClock "0:00:00"]

1. Nf3 {[%clk 0:00:01]}  d5 {[%clk 0:00:01]} 2. c4 {[%clk 0:00:01]}  c6 {[%clk 0:00:01]} 3. e3 {[%clk 0:00:01]}  Nf6 {[%clk 0:00:01]} 4. Nc3 {[%clk 0:00:01]}  Bg4 {[%clk 0:00:01]} 5. Qb3 {[%clk 0:00:01]}  Bxf3 {[%clk 0:00:01]} 6. Qxb7 {[%clk 0:00:01]}  Nbd7 {[%clk 0:00:01]} 7. gxf3 {[%clk 0:00:01]}  e6 {[%clk 0:00:01]} 8. Qxc6 {[%clk 0:00:01]}  Rc8 {[%clk 0:00:01]} 9. Qa4 {[%clk 0:00:01]}  Bd6 {[%clk 0:00:01]} 10. cxd5 {[%clk 0:00:01]}  exd5 {[%clk 0:00:01]} 11. d4 {[%clk 0:00:01]}  O-O {[%clk 0:00:01]} 12. Bd3 {[%clk 0:00:01]}  Rb8 {[%clk 0:00:01]} 13. Qc2 {[%clk 0:00:01]}  Qe7 {[%clk 0:00:01]} 14. Bd2 {[%clk 0:00:01]}  Rfc8 {[%clk 0:00:01]} 15. Kf1 {[%clk 0:00:01]}  Nb6 {[%clk 0:00:01]} 16. Rc1 {[%clk 0:00:00]}  g6 {[%clk 0:00:01]} 17. h4 {[%clk 0:00:00]}  Nh5 {[%clk 0:00:01]} 18. Qd1 {[%clk 0:00:00]}  Qe6 {[%clk 0:00:01]} 19. Qe2 {[%clk 0:00:00]}  a5 {[%clk 0:00:00]} 20. Kg2 {[%clk 0:00:00]}  Nc4 {[%clk 0:00:00]} 21. Bxc4 {[%clk 0:00:00]}  dxc4 {[%clk 0:00:00]} 22. Be1 {[%clk 0:00:00]}  Bb4 {[%clk 0:00:00]} 23. Ne4 {[%clk 0:00:00]}  f5 {[%clk 0:00:00]} 24. Ng3 {[%clk 0:00:00]}  Nf6 {[%clk 0:00:00]} 25. Bc3 {[%clk 0:00:00]}  Nd5 {[%clk 0:00:00]} 26. Qd2 {[%clk 0:00:00]}  f4 {[%clk 0:00:00]} 27. Ne4 {[%clk 0:00:00]}  Rf8 {[%clk 0:00:00]} 28. a3 {[%clk 0:00:00]}  Qf5 {[%clk 0:00:00]} 29. Rh3 {[%clk 0:00:00]}  Bxc3 {[%clk 0:00:00]} 30. Nxc3 {[%clk 0:00:00]}  fxe3 {[%clk 0:00:00]} 31. fxe3 {[%clk 0:00:00]}  Nf6 {[%clk 0:00:00]} 32. e4 {[%clk 0:00:00]}  Qd7 {[%clk 0:00:00]} 33. d5 {[%clk 0:00:00]}  Nh5 {[%clk 0:00:00]} 34. Ne2 {[%clk 0:00:00]}  Rb3 {[%clk 0:00:00]} 35. Rc3 {[%clk 0:00:00]}  Rb6 {[%clk 0:00:00]} 36. Rxc4 {[%clk 0:00:00]}  Rbf6 {[%clk 0:00:00]} 37. Rc3 {[%clk 0:00:00]}  Kh8 {[%clk 0:00:00]} 38. e5 {[%clk 0:00:00]}  Rf5 {[%clk 0:00:00]} 39. Qd4 {[%clk 0:00:00]}  Kg8 {[%clk 0:00:00]} 40. d6 {[%clk 0:00:00]}  Ng7 {[%clk 0:00:00]} 41. Qd5+ {[%clk 0:00:00]}  Ne6 {[%clk 0:00:00]} 42. Nd4 {[%clk 0:00:00]} 1-0


[Site "https://www.chess.com"]

[Event "Titled Tuesday Blitz May 2 Early 2023"]
[White "Hoffmann, Asa"]
[Black "Lamaze, Simon"]
[WhiteFideId "2001470"]
[BlackFideId "36069264"]
[WhiteElo "2117"]
[BlackElo "2272"]
[Result "0-1"]
[Round "01"]
[TimeControl "180+2"]
[Date "2023.05.02"]
[WhiteClock "0:00:00"]
[BlackClock "0:00:00"]

1. d4 {[%clk 0:00:01]}  Nf6 {[%clk 0:00:01]} 2. Bg5 {[%clk 0:00:01]}  Ne4 {[%clk 0:00:01]} 3. Bf4 {[%clk 0:00:01]}  c5 {[%clk 0:00:01]} 4. f3 {[%clk 0:00:01]}  Nf6 {[%clk 0:00:01]} 5. dxc5 {[%clk 0:00:01]}  Nc6 {[%clk 0:00:00]} 6. Nc3 {[%clk 0:00:01]}  Qa5 {[%clk 0:00:00]} 7. e4 {[%clk 0:00:01]}  e5 {[%clk 0:00:00]} 8. Be3 {[%clk 0:00:01]}  Bxc5 {[%clk 0:00:00]} 9. Bxc5 {[%clk 0:00:01]}  Qxc5 {[%clk 0:00:00]} 10. Qd2 {[%clk 0:00:01]}  O-O {[%clk 0:00:00]} 11. O-O-O {[%clk 0:00:01]}  a6 {[%clk 0:00:00]} 12. Nge2 {[%clk 0:00:01]}  b5 {[%clk 0:00:00]} 13. Kb1 {[%clk 0:00:01]}  Bb7 {[%clk 0:00:00]} 14. Nc1 {[%clk 0:00:01]}  Qb6 {[%clk 0:00:00]} 15. Nb3 {[%clk 0:00:01]}  Rfd8 {[%clk 0:00:00]} 16. Qd6 {[%clk 0:00:01]}  Ne8 {[%clk 0:00:00]} 17. Nd5 {[%clk 0:00:01]}  Qa7 {[%clk 0:00:00]} 18. Ne7+ {[%clk 0:00:01]}  Nxe7 {[%clk 0:00:00]} 19. Qxe7 {[%clk 0:00:01]}  d6 {[%clk 0:00:00]} 20. Be2 {[%clk 0:00:01]}  Bc6 {[%clk 0:00:00]} 21. Qxa7 {[%clk 0:00:01]}  Rxa7 {[%clk 0:00:00]} 22. Rd2 {[%clk 0:00:01]}  Kf8 {[%clk 0:00:00]} 23. Rhd1 {[%clk 0:00:01]}  Ke7 {[%clk 0:00:00]} 24. a3 {[%clk 0:00:01]}  a5 {[%clk 0:00:00]} 25. c3 {[%clk 0:00:00]}  Rb8 {[%clk 0:00:00]} 26. Nc1 {[%clk 0:00:00]}  Rb6 {[%clk 0:00:00]} 27. Nd3 {[%clk 0:00:00]}  g5 {[%clk 0:00:00]} 28. b4 {[%clk 0:00:00]}  Bd7 {[%clk 0:00:00]} 29. Kb2 {[%clk 0:00:00]}  Be6 {[%clk 0:00:00]} 30. Nc1 {[%clk 0:00:00]}  Nc7 {[%clk 0:00:00]} 31. g3 {[%clk 0:00:00]}  h5 {[%clk 0:00:00]} 32. f4 {[%clk 0:00:00]}  exf4 {[%clk 0:00:00]} 33. gxf4 {[%clk 0:00:00]}  gxf4 {[%clk 0:00:00]} 34. Nd3 {[%clk 0:00:00]}  axb4 {[%clk 0:00:00]} 35. cxb4 {[%clk 0:00:00]}  Rba6 {[%clk 0:00:00]} 36. Ra1 {[%clk 0:00:00]}  Na8 {[%clk 0:00:00]} 37. Nxf4 {[%clk 0:00:00]}  Rb6 {[%clk 0:00:00]} 38. Nxh5 {[%clk 0:00:00]}  Rb8 {[%clk 0:00:00]} 39. Nf4 {[%clk 0:00:00]}  Nb6 {[%clk 0:00:00]} 40. h4 {[%clk 0:00:00]}  Na4+ {[%clk 0:00:00]} 41. Kc2 {[%clk 0:00:00]}  Rc7+ {[%clk 0:00:00]} 42. Kd1 {[%clk 0:00:00]}  Rg8 {[%clk 0:00:00]} 43. Ke1 {[%clk 0:00:00]}  Bc4 {[%clk 0:00:00]} 44. Kf2 {[%clk 0:00:00]}  Nc3 {[%clk 0:00:00]} 45. Rc1 {[%clk 0:00:00]}  Nxe4+ {[%clk 0:00:00]} 46. Ke3 {[%clk 0:00:00]}  Nxd2 {[%clk 0:00:00]} 47. Kxd2 {[%clk 0:00:00]}  Kd7 {[%clk 0:00:00]} 48. h5 {[%clk 0:00:00]}  Bxe2 {[%clk 0:00:00]} 49. Rxc7+ {[%clk 0:00:00]}  Kxc7 {[%clk 0:00:00]} 50. Kxe2 {[%clk 0:00:00]}  Rg4 {[%clk 0:00:00]} 51. Kf3 {[%clk 0:00:00]}  f5 {[%clk 0:00:00]} 52. h6 {[%clk 0:00:00]}  Rh4 {[%clk 0:00:00]} 53. Nd5+ {[%clk 0:00:00]}  Kd7 {[%clk 0:00:00]} 54. h7 {[%clk 0:00:00]}  Ke6 {[%clk 0:00:00]} 55. Nc3 {[%clk 0:00:00]}  Rxh7 {[%clk 0:00:00]} 56. Nxb5 {[%clk 0:00:00]}  Ke5 {[%clk 0:00:00]} 57. a4 {[%clk 0:00:00]}  Rh3+ {[%clk 0:00:00]} 58. Ke2 {[%clk 0:00:00]}  Rh4 {[%clk 0:00:00]} 59. a5 {[%clk 0:00:00]}  Rxb4 {[%clk 0:00:00]} 60. Nc3 {[%clk 0:00:00]}  Rb3 {[%clk 0:00:00]} 61. Kd3 {[%clk 0:00:00]}  Ra3 {[%clk 0:00:00]} 62. Kc4 {[%clk 0:00:00]}  Rxa5 {[%clk 0:00:00]} 0-1


[Site "https://www.chess.com"]

[Event "Titled Tuesday Blitz May 2 Early 2023"]
[White "Novikova, Galina"]
[Black "Bolourchifard, Farzad"]
[WhiteFideId "4157095"]
[BlackFideId "12510084"]
[WhiteElo "1953"]
[BlackElo "2317"]
[Result "1/2-1/2"]
[Round "01"]
[TimeControl "180+2"]
[Date "2023.05.02"]
[WhiteClock "0:00:00"]
[BlackClock "0:00:00"]

1. e4 {[%clk 0:00:01]}  e5 {[%clk 0:00:01]} 2. Nf3 {[%clk 0:00:01]}  Nc6 {[%clk 0:00:01]} 3. Bc4 {[%clk 0:00:01]}  Bc5 {[%clk 0:00:01]} 4. b4 {[%clk 0:00:01]}  Bxb4 {[%clk 0:00:01]} 5. c3 {[%clk 0:00:01]}  Ba5 {[%clk 0:00:01]} 6. d4 {[%clk 0:00:01]}  exd4 {[%clk 0:00:01]} 7. O-O {[%clk 0:00:01]}  Nge7 {[%clk 0:00:01]} 8. Ng5 {[%clk 0:00:01]}  d5 {[%clk 0:00:01]} 9. exd5 {[%clk 0:00:01]}  Ne5 {[%clk 0:00:01]} 10. Qxd4 {[%clk 0:00:01]}  Nxc4 {[%clk 0:00:01]} 11. Qxg7 {[%clk 0:00:01]}  Rg8 {[%clk 0:00:01]} 12. Qxf7+ {[%clk 0:00:01]}  Kd7 {[%clk 0:00:01]} 13. Qe6+ {[%clk 0:00:00]}  Ke8 {[%clk 0:00:01]} 14. Qf7+ {[%clk 0:00:00]}  Kd7 {[%clk 0:00:01]} 15. Qe6+ {[%clk 0:00:00]}  Ke8 {[%clk 0:00:00]} 16. Qf7+ {[%clk 0:00:00]}  Kd7 {[%clk 0:00:00]} 1/2-1/2


[Site "https://www.chess.com"]